[Event "FIN-ch Seniors 65 2020"]
[Site "Helsinki"]
[Date "2020.09.27"]
[Round "7.2"]
[White "Auvinen, Esa"]
[Black "Tiensuu, Seppo"]
[Result "1-0"]
[ECO "C68"]
[WhiteElo "1809"]
[BlackElo "1412"]
[Annotator "NA"]
[PlyCount "71"]
[EventDate "2020.09.24"]
[EventType "swiss"]
[EventCountry "FIN"]
[SourceTitle "playchess.com"]
[Source "ChessBase"]
[SourceQuality "1"]
[TimeControl "40/5400+30:1800+30"]

1. e4 {[%emt 0:00:00]} e5 {[%emt 0:00:00]} 2. Nf3 {[%emt 0:00:00]} Nc6 {[%emt 0:00:00]} 3. Bb5 {[%emt 0:00:00]} a6 {[%emt 0:00:22]} 4. Bxc6 {[%emt 0:00:00]} bxc6 {[%emt 0:00:45]} 5. Nxe5 {[%emt 0:01:19]} Qe7 {[%emt 0:01:45]} 6. d4 {[%emt 0:00:19]} Nf6 {[%emt 0:00:45]} 7. Nc3 {[%emt 0:00:58]} Bb7 {[%emt 0:00:16]} 8. O-O {[%emt 0:00:24]} g6 {[%emt 0:01:45]} 9. Nf3 {[%emt 0:01:18]} Bg7 {[%emt 0:00:25]} 10. Bg5 {[%emt 0:03:13]} Qe6 {[%emt 0:03:32]} 11. e5 {[%emt 0:03:43]} Nd5 {[%emt 0:00:18]} 12. Ne4 {[%emt 0:09:42]} d6 {[%emt 0:02:48]} 13. c4 {[%emt 0:02:19]} Ne7 {[%emt 0:04:05]} 14. Nf6+ {[%emt 0:02:14]} Bxf6 {[%emt 0:01:17]} 15. exf6 {[%emt 0:00:35]} O-O-O {[%emt 0:02:37]} 16. fxe7 {[%emt 0:00:35]} Rde8 {[%emt 0:00:10]} 17. b3 {[%emt 0:01:56]} h6 {[%emt 0:00:12]} 18. Re1 {[%emt 0:01:16]} Qd7 {[%emt 0:01:06]} 19. Bd2 {[%emt 0:05:23]} Rxe7 {[%emt 0:00:33]} 20. Rxe7 {[%emt 0:00:45]} Qxe7 {[%emt 0:00:12]} 21. Qe1 {[%emt 0:00:56]} Qe6 {[%emt 0:04:12]} 22. Qxe6+ {[%emt 0:00:45]} fxe6 {[%emt 0:00:08]} 23. Re1 {[%emt 0:00:27]} Kd7 {[%emt 0:00:09]} 24. h4 {[%emt 0:02:23]} c5 {[%emt 0:01:56]} 25. dxc5 {[%emt 0:00:10]} Bxf3 {[%emt 0:02:06]} 26. gxf3 {[%emt 0:00:05]} g5 {[%emt 0:01:06]} 27. hxg5 {[%emt 0:00:38]} hxg5 {[%emt 0:00:10]} 28. cxd6 {[%emt 0:00:18]} cxd6 {[%emt 0:00:13]} 29. Bxg5 {[%emt 0:00:37]} Rg8 {[%emt 0:00:15]} 30. f4 {[%emt 0:00:08]} a5 {[%emt 0:02:17]} 31. Kf1 {[%emt 0:00:21]} Rh8 {[%emt 0:02:26]} 32. Kg2 {[%emt 0:02:15]} e5 {[%emt 0:00:31]} 33. Rh1 {[%emt 0:01:18]} Rg8 {[%emt 0:01:36]} 34. Kf3 {[%emt 0:00:14]} exf4 {[%emt 0:00:32]} 35. Bxf4 {[%emt 0:00:10]} Rf8 {[%emt 0:00:25]} 36. Rh6 {[%emt 0:00:43]} 1-0

[Event "FIN-ch Seniors 65 2020"]
[Site "Helsinki"]
[Date "2020.09.27"]
[Round "7.3"]
[White "Jarnstrom, Henrik"]
[Black "Karppinen, Martti"]
[Result "0-1"]
[ECO "B31"]
[WhiteElo "1696"]
[BlackElo "1878"]
[Annotator "NA"]
[PlyCount "100"]
[EventDate "2020.09.24"]
[EventType "swiss"]
[EventCountry "FIN"]
[SourceTitle "playchess.com"]
[Source "ChessBase"]
[SourceQuality "1"]
[TimeControl "40/5400+30:1800+30"]

1. e4 {[%emt 0:00:00]} c5 {[%emt 0:00:00]} 2. Be2 {[%emt 0:00:00]} Nc6 {[%emt 0:00:25]} 3. f4 {[%emt 0:00:00]} e5 {[%emt 0:03:18]} 4. d3 {[%emt 0:01:07]} Nf6 {[%emt 0:04:53]} 5. Nf3 {[%emt 0:00:28]} Qc7 {[%emt 0:02:14]} 6. fxe5 {[%emt 0:01:18]} Nxe5 {[%emt 0:01:14]} 7. Nc3 {[%emt 0:00:31]} a6 {[%emt 0:03:17]} 8. O-O {[%emt 0:00:56]} Bd6 {[%emt 0:02:06]} 9. h3 {[%emt 0:01:44]} Nxf3+ {[%emt 0:04:38]} 10. Bxf3 {[%emt 0:00:29]} Be5 {[%emt 0:09:44]} 11. Bg5 {[%emt 0:00:38]} Bd4+ {[%emt 0:03:29]} 12. Kh1 {[%emt 0:00:17]} Qg3 {[%emt 0:02:11]} 13. Bxf6 {[%emt 0:01:30]} Bxf6 {[%emt 0:02:32]} 14. Ne2 {[%emt 1:28:02]} Qh4 {[%emt 0:03:40]} 15. c3 {[%emt 0:00:00]} d6 {[%emt 0:01:16]} 16. Ng1 {[%emt 0:00:00]} Bd7 {[%emt 0:05:12]} 17. Qe1 {[%emt 0:00:00]} O-O-O {[%emt 0:02:24]} 18. Qxh4 {[%emt 0:00:00]} Bxh4 {[%emt 0:00:27]} 19. d4 {[%emt 0:00:00]} Bb5 {[%emt 0:02:03]} 20. Rfd1 {[%emt 0:00:00]} Bf6 {[%emt 0:02:25]} 21. Bg4+ {[%emt 0:00:00]} Kc7 {[%emt 0:00:50]} 22. b3 {[%emt 0:00:00]} h5 {[%emt 0:02:52]} 23. Bf3 {[%emt 0:00:00]} g5 {[%emt 0:00:49]} 24. a4 {[%emt 0:00:00]} Bd7 {[%emt 0:02:25]} 25. dxc5 {[%emt 0:00:00]} dxc5 {[%emt 0:02:14]} 26. Rd5 {[%emt 0:00:00]} g4 {[%emt 0:02:29]} 27. Be2 {[%emt 0:00:00]} Kc6 {[%emt 0:04:05]} 28. Rc1 {[%emt 0:00:00]} Be6 {[%emt 0:01:51]} 29. Rxd8 {[%emt 0:00:00]} Rxd8 {[%emt 0:00:49]} 30. c4 {[%emt 0:00:00]} Rd4 {[%emt 0:03:49]} 31. hxg4 {[%emt 0:00:00]} hxg4 {[%emt 0:00:23]} 32. Rd1 {[%emt 0:00:00]} Rxe4 {[%emt 0:01:06]} 33. g3 {[%emt 0:00:00]} Bd4 {[%emt 0:04:19]} 34. Bf1 {[%emt 0:00:00]} Re5 {[%emt 0:02:21]} 35. Ne2 {[%emt 0:00:00]} Rh5+ {[%emt 0:00:56]} 36. Kg2 {[%emt 0:00:00]} Be5 {[%emt 0:02:10]} 37. Kf2 {[%emt 0:00:00]} Bd6 {[%emt 0:03:58]} 38. Bg2+ {[%emt 0:00:00]} Kc7 {[%emt 0:00:55]} 39. Nc3 {[%emt 0:00:00]} Rh2 {[%emt 0:00:48]} 40. Ne2 {[%emt 0:00:00]} Bf5 {[%emt 0:01:00]} 41. Kg1 {[%emt 0:00:00]} Rh6 {[%emt 0:31:14]} 42. Kf2 {[%emt 0:44:00]} Bc2 {[%emt 0:03:36]} 43. Rd2 {[%emt 0:00:00]} Rf6+ {[%emt 0:01:49]} 44. Kg1 {[%emt 0:00:00]} Bg6 {[%emt 0:00:52]} 45. Nc3 {[%emt 0:00:00]} Re6 {[%emt 0:02:19]} 46. Nd5+ {[%emt 0:00:00]} Kb8 {[%emt 0:00:58]} 47. Kf2 {[%emt 0:00:00]} Be5 {[%emt 0:00:00]} 48. Rd1 {[%emt 0:00:00]} Bd4+ {[%emt 0:00:00]} 49. Kf1 {[%emt 0:00:00]} Bc2 {[%emt 0:00:00]} 50. Rd2 {[%emt 0:00:00]} Bxb3 {[%emt 0:00:00]} 0-1

[Event "FIN-ch Seniors 65 2020"]
[Site "Helsinki"]
[Date "2020.09.27"]
[Round "7.5"]
[White "Koskinen, Hannu E."]
[Black "Saharinen, Petri"]
[Result "1/2-1/2"]
[ECO "D66"]
[WhiteElo "1753"]
[BlackElo "1720"]
[Annotator "NA"]
[PlyCount "98"]
[EventDate "2020.09.24"]
[EventType "swiss"]
[EventCountry "FIN"]
[SourceTitle "playchess.com"]
[Source "ChessBase"]
[SourceQuality "1"]
[TimeControl "40/5400+30:1800+30"]

1. Nf3 {[%emt 0:00:00]} Nf6 {[%emt 0:00:00]} 2. c4 {[%emt 0:00:00]} e6 {[%emt 0:00:07]} 3. Nc3 {[%emt 0:00:00]} d5 {[%emt 0:00:30]} 4. d4 {[%emt 0:00:00]} c6 {[%emt 0:02:08]} 5. Bg5 {[%emt 0:00:29]} Be7 {[%emt 0:00:45]} 6. e3 {[%emt 0:00:16]} Nbd7 {[%emt 0:00:10]} 7. Bd3 {[%emt 0:00:50]} dxc4 {[%emt 0:00:27]} 8. Bxc4 {[%emt 0:00:05]} b5 {[%emt 0:00:07]} 9. Bd3 {[%emt 0:01:43]} Bb7 {[%emt 0:00:09]} 10. O-O {[%emt 0:01:35]} O-O {[%emt 0:00:12]} 11. Rc1 {[%emt 0:03:55]} a6 {[%emt 0:00:15]} 12. Qe2 {[%emt 0:08:32]} Rc8 {[%emt 0:00:15]} 13. Bxf6 {[%emt 0:04:32]} Nxf6 {[%emt 0:00:21]} 14. Rfd1 {[%emt 0:04:03]} Nd5 {[%emt 0:03:41]} 15. Nxd5 {[%emt 0:06:35]} Qxd5 {[%emt 0:00:15]} 16. a3 {[%emt 0:19:26]} Qh5 {[%emt 0:00:36]} 17. Ne5 {[%emt 0:00:28]} Qxe2 {[%emt 0:00:39]} 18. Bxe2 {[%emt 0:00:04]} Rc7 {[%emt 0:03:19]} 19. Nd3 {[%emt 0:02:05]} Rd8 {[%emt 0:01:40]} 20. b4 {[%emt 0:02:14]} g6 {[%emt 0:01:12]} 21. Bf3 {[%emt 0:01:54]} f6 {[%emt 0:00:22]} 22. Nc5 {[%emt 0:02:51]} Bc8 {[%emt 0:00:36]} 23. Kf1 {[%emt 0:02:47]} Kf7 {[%emt 0:00:15]} 24. Nb3 {[%emt 0:02:04]} Bd7 {[%emt 0:02:32]} 25. d5 {[%emt 0:02:01]} exd5 {[%emt 0:01:09]} 26. Bxd5+ {[%emt 0:00:57]} Be6 {[%emt 0:00:12]} 27. Bxe6+ {[%emt 0:01:03]} Kxe6 {[%emt 0:00:15]} 28. Rxd8 {[%emt 0:01:34]} Bxd8 {[%emt 0:00:27]} 29. Nc5+ {[%emt 0:01:07]} Kd6 {[%emt 0:01:28]} 30. Rd1+ {[%emt 0:04:57]} Ke7 {[%emt 0:00:24]} 31. Ke2 {[%emt 0:02:53]} Ra7 {[%emt 0:01:22]} 32. Rc1 {[%emt 0:03:00]} a5 {[%emt 0:00:20]} 33. Nb3 {[%emt 0:01:52]} axb4 {[%emt 0:01:19]} 34. axb4 {[%emt 0:00:08]} Ra2+ {[%emt 0:01:38]} 35. Kf3 {[%emt 0:00:29]} Rb2 {[%emt 0:01:11]} 36. Nd4 {[%emt 0:00:42]} Bc7 {[%emt 0:01:33]} 37. Nxb5 {[%emt 0:02:10]} Bxh2 {[%emt 0:00:35]} 38. Nd4 {[%emt 0:04:34]} Be5 {[%emt 0:01:09]} 39. Nxc6+ {[%emt 0:00:51]} Kd6 {[%emt 0:00:26]} 40. Nxe5 {[%emt 0:02:16]} Kxe5 {[%emt 0:00:32]} 41. Rc7 {[%emt 0:33:27]} h5 {[%emt 0:30:29]} 42. Rb7 {[%emt 0:02:27]} g5 {[%emt 0:01:42]} 43. g3 {[%emt 0:00:41]} f5 {[%emt 0:01:14]} 44. b5 {[%emt 0:07:44]} Kd5 {[%emt 0:00:30]} 45. b6 {[%emt 0:00:00]} Kc6 {[%emt 0:00:00]} 46. Rb8 {[%emt 0:00:00]} g4+ {[%emt 0:00:00]} 47. Kg2 {[%emt 0:00:00]} Rxb6 {[%emt 0:00:00]} 48. Rxb6+ {[%emt 0:00:00]} Kxb6 {[%emt 0:00:00]} 49. f3 {[%emt 0:00:00]} Kc5 {[%emt 1:16:02]} 1/2-1/2